fUSD/lending_fUSD_20250422
["ID","MTS","AMOUNT","RATE_DAILY","PERIOD"]
[358592730,1745295067781,-500.0,0.00056438,120]
[358592731,1745295067790,-500.0,0.00056438,120]
[358592732,1745295067800,-500.0,0.00056438,120]
[358592733,1745295067809,-500.0,0.00056438,120]
[358592734,1745295067818,-1217.58,0.00056438,120]
[358592735,1745295067827,-500.0,0.00056438,120]
[358592736,1745295067836,-734.8,0.00056438,120]
[358592737,1745295067846,-500.0,0.00056438,120]
[358592738,1745295067855,-512.63,0.00056438,120]
[358592739,1745295067864,-634.7980668,0.00056438,120]
[358592740,1745295067873,-500.0,0.00056438,120]
[358592741,1745295067883,-535.91,0.00056438,120]
[358592742,1745295067892,-500.0,0.00056438,120]
[358592743,1745295067901,-500.0,0.00056438,120]
[358592744,1745295067916,-500.0,0.00056438,120]
[358592745,1745295067926,-403.79427246,0.00056438,120]
[358592746,1745295067935,-252.805805,0.00056438,120]
[358592747,1745295067945,-500.0,0.00056438,120]
[358592748,1745295067956,-525.32,0.00056438,120]
[358592749,1745295067966,-252.805805,0.00056438,120]
[358592750,1745295067975,-526.60350058,0.00056438,120]
[358592751,1745295067985,-500.0,0.00056438,120]
[358592752,1745295067995,-500.0,0.00056438,120]
[358592753,1745295068006,-500.0,0.00056438,120]
[358592754,1745295068015,-500.0,0.00056438,120]
[358592755,1745295068025,-500.0,0.00056438,120]
[358592756,1745295068035,-515.48200077,0.00056438,120]
[358592757,1745295068045,-500.0,0.00056438,120]
[358592758,1745295068054,-500.0,0.00056438,120]
[358592759,1745295068064,-1224.65,0.00056438,120]
[358592760,1745295068073,-500.0,0.00056438,120]
[358592761,1745295068083,-500.0,0.00056438,120]
[358592762,1745295068092,-500.0,0.00056438,120]
[358592763,1745295068101,-740.11,0.00056438,120]
[358592764,1745295068111,-1297.76,0.00056438,120]
[358592765,1745295068120,-207.61349005,0.00056438,120]
[358592766,1745295068130,-500.0,0.00056438,120]
[358592767,1745295068139,-500.0,0.00056438,120]
[358592768,1745295068148,-500.0,0.00056438,120]
[358592769,1745295068158,-162.03102786,0.00056438,2]
[358592770,1745295068169,-500.0,0.00056438,120]
[358592771,1745295068178,-3000.00008336,0.0005666,35]
[358592772,1745295068188,-600.0,0.00056668,120]
[358592773,1745295068198,-200.0,0.000567,107]
[358592774,1745295068207,-2700.0,0.00056722,120]
[358592775,1745295068216,-2438.00782325,0.000568,30]
[358592776,1745295068226,-1444.399,0.0005689,110]
[358592777,1745295068235,-2700.0,0.00056916,120]
[358592778,1745295068244,-646.6774063,0.00056947,2]
[358592779,1745295068253,-89923.15,0.00056986,7]
[358592780,1745295068262,-187.884564,0.00056986,120]
[358592781,1745295068434,-298.945392,0.00056986,120]
[358592782,1745295068443,-1123.355858,0.00056986,120]
[358592783,1745295068453,-180.901105,0.00056986,120]
[358592784,1745295068462,-295.23421369,0.00056986,120]
[358592785,1745295068472,-500.0,0.00056986,120]
[358592786,1745295068481,-500.0,0.00056986,120]
[358592787,1745295068490,-290.30279983,0.00056986,120]
[358592788,1745295068499,-500.0,0.00056986,60]
[358592789,1745295068508,-600.0,0.00056986,120]
[358592790,1745295068518,-381.52142845,0.00056986,120]
[358592791,1745295068527,-500.0,0.00056986,120]
[358592792,1745295068535,-500.0,0.00056986,120]
[358592793,1745295068545,-500.0,0.00056986,120]
[358592794,1745295068553,-500.0,0.00056986,120]
[358592795,1745295068562,-1000.0,0.00056986,120]
[358592796,1745295068571,-500.0,0.00056986,120]
[358592797,1745295068580,-534.94732,0.00056986,120]
[358592798,1745295068590,-500.0,0.00056986,120]
[358592799,1745295068599,-534.94732,0.00056986,120]
[358592800,1745295068608,-500.0,0.00056986,120]
[358592801,1745295068617,-500.0,0.00056986,120]
[358592802,1745295068626,-500.0,0.00056986,120]
[358592803,1745295068635,-252.019326,0.00056986,120]
[358592804,1745295068644,-500.0,0.00056986,120]
[358592805,1745295068653,-367.726189,0.00056986,120]
[358592806,1745295068662,-500.0,0.00056986,120]
[358592807,1745295068671,-500.0,0.00056986,120]
[358592808,1745295068680,-500.0,0.00056986,120]
[358592809,1745295068689,-500.0,0.00056986,120]
[358592810,1745295068698,-176.954828,0.00056986,120]
[358592811,1745295068708,-500.0,0.00056986,120]
[358592812,1745295068717,-500.0,0.00056986,120]
[358592813,1745295068726,-176.954828,0.00056986,120]
[358592814,1745295068735,-500.0,0.00056986,120]
[358592815,1745295068744,-500.0,0.00056986,120]
[358592816,1745295068753,-500.0,0.00056986,120]
[358592817,1745295068762,-500.0,0.00056986,120]
[358592818,1745295068771,-191.889919,0.00056986,120]
[358592819,1745295068780,-500.0,0.00056986,120]
[358592820,1745295068789,-574.32,0.00056986,120]
[358592821,1745295068798,-500.0,0.00056986,120]
[358592822,1745295068808,-500.0,0.00056986,120]
[358592823,1745295068817,-500.0,0.00056986,120]
[358592824,1745295068826,-500.0,0.00056986,120]
[358592825,1745295068835,-600.83163733,0.00056986,120]
[358592826,1745295068844,-151.0,0.00056986,120]
[358592827,1745295068852,-500.0,0.00056986,120]
[358592828,1745295068861,-673.62,0.00056986,120]
[358592829,1745295068871,-500.0,0.00056986,120]
[358592830,1745295068880,-151.0,0.00056986,120]
[358592831,1745295068890,-151.0,0.00056986,120]
[358592832,1745295068899,-500.0,0.00056986,120]
[358592833,1745295068909,-500.0,0.00056986,120]
[358592834,1745295068922,-296.72019595,0.00056986,30]
[358592835,1745295068931,-843.87,0.00056986,120]
[358592836,1745295068940,-500.0,0.00056986,120]
[358592837,1745295068949,-500.0,0.00056986,120]
[358592838,1745295068959,-500.0,0.00056986,120]
[358592839,1745295068968,-500.0,0.00056986,120]
[358592840,1745295068978,-616.34763338,0.00056986,120]
[358592841,1745295068989,-500.0,0.00056986,120]
[358592842,1745295068998,-500.0,0.00056986,120]
[358592843,1745295069007,-500.0,0.00056986,120]
[358592844,1745295069017,-500.0,0.00056986,120]
[358592845,1745295069026,-500.0,0.00056986,120]
[358592846,1745295069035,-500.0,0.00056986,120]
[358592847,1745295069045,-500.0,0.00056986,120]
[358592848,1745295069054,-500.0,0.00056986,120]
[358592849,1745295069063,-1312.2,0.00056986,120]
[358592850,1745295069072,-500.0,0.00056986,120]
[358592851,1745295069082,-500.0,0.00056986,120]
[358592852,1745295069091,-500.0,0.00056986,120]
[358592853,1745295069100,-500.0,0.00056986,120]
[358592854,1745295069109,-500.0,0.00056986,120]
[358592855,1745295069118,-500.0,0.00056986,120]
[358592856,1745295069127,-611.122299,0.00056986,120]
[358592857,1745295069137,-500.0,0.00056986,120]
[358592858,1745295069146,-662.48,0.00056986,120]
[358592859,1745295069155,-611.122299,0.00056986,120]
[358592860,1745295069169,-500.0,0.00056986,120]
[358592861,1745295069179,-617.72045331,0.00056986,120]
[358592862,1745295069190,-583.55,0.00056986,120]
[358592863,1745295069199,-539.25,0.00056986,120]
[358592864,1745295069209,-151.0,0.00056986,120]
[358592865,1745295069219,-500.0,0.00056986,120]
[358592866,1745295069229,-500.0,0.00056986,120]
[358592867,1745295069239,-500.0,0.00056986,120]
[358592868,1745295069249,-500.0,0.00056986,120]
[358592869,1745295069259,-500.0,0.00056986,120]
[358592870,1745295069268,-500.0,0.00056986,120]
[358592871,1745295069278,-500.0,0.00056986,120]
[358592872,1745295069288,-500.0,0.00056986,120]
[358592873,1745295069297,-500.0,0.00056986,120]
[358592874,1745295069307,-500.0,0.00056986,120]
[358592875,1745295069316,-500.0,0.00056986,120]
[358592876,1745295069325,-500.0,0.00056986,120]
[358592877,1745295069334,-350.23658244,0.00056986,120]
[358592878,1745295069343,-500.0,0.00056986,120]
[358592879,1745295069352,-500.0,0.00056986,120]
[358592880,1745295069362,-500.0,0.00056986,120]
[358592881,1745295069371,-500.0,0.00056986,120]
[358592882,1745295069382,-500.0,0.00056986,120]
[358592883,1745295069391,-509.45,0.00056986,120]
[358592884,1745295069401,-500.0,0.00056986,120]
[358592885,1745295069411,-500.0,0.00056986,120]
[358592886,1745295069424,-500.0,0.00056986,120]
[358592887,1745295069433,-205.755708,0.00056986,120]
[358592888,1745295069442,-197.03216412,0.00056986,120]
[358592889,1745295069452,-515.19,0.00056986,120]
[358592890,1745295069461,-500.0,0.00056986,120]
[358592891,1745295069471,-500.0,0.00056986,120]
[358592892,1745295069480,-175.776503,0.00056986,28]
[358592893,1745295069490,-500.0,0.00056986,120]
[358592894,1745295069500,-500.0,0.00056986,120]
[358592895,1745295069509,-500.0,0.00056986,120]
[358592896,1745295069519,-500.0,0.00056986,120]
[358592897,1745295069528,-500.0,0.00056986,120]
[358592898,1745295069537,-445.20404002,0.00056986,120]
[358592899,1745295069546,-500.0,0.00056986,120]
[358592900,1745295069555,-500.0,0.00056986,120]
[358592901,1745295069565,-500.0,0.00056986,120]
[358592902,1745295069574,-1064.2,0.00056986,120]
[358592903,1745295069584,-523.02,0.00056986,120]
[358592904,1745295069593,-500.0,0.00056986,2]
[358592905,1745295069602,-500.0,0.00056986,120]
[358592906,1745295069612,-500.0,0.00056986,120]
[358592907,1745295069621,-500.0,0.00056986,120]
[358592908,1745295069630,-500.0,0.00056986,120]
[358592909,1745295069640,-500.0,0.00056986,120]
[358592910,1745295069648,-500.0,0.00056986,120]
[358592911,1745295069658,-500.0,0.00056986,120]
[358592912,1745295069671,-20766.77,0.00056986,120]
[358592913,1745295069680,-500.0,0.00056986,120]
[358592914,1745295069689,-500.0,0.00056986,120]
[358592915,1745295069699,-500.0,0.00056986,120]
[358592916,1745295069708,-500.0,0.00056986,120]
[358592917,1745295069718,-500.0,0.00056986,120]
[358592918,1745295069727,-504.00617784,0.00056986,120]
[358592919,1745295069737,-1000.0,0.00056986,35]
[358592920,1745295069747,-500.0,0.00056986,120]
[358592921,1745295069756,-500.0,0.00056986,120]
[358592922,1745295069765,-500.0,0.00056986,120]
[358592923,1745295069775,-500.0,0.00056986,120]
[358592924,1745295069784,-500.0,0.00056986,120]
[358592925,1745295069795,-500.0,0.00056986,120]
[358592926,1745295069804,-1000.0,0.00056986,120]
[358592927,1745295069814,-500.0,0.00056986,120]
[358592928,1745295069824,-500.0,0.00056986,120]
[358592929,1745295069834,-500.0,0.00056986,120]
[358592930,1745295069844,-545.52,0.00056986,120]
[358592931,1745295069853,-2205.73,0.00056986,120]
[358592932,1745295069863,-388.60493643,0.00056986,120]
[358592933,1745295069872,-500.0,0.00056986,120]
[358592934,1745295069883,-500.0,0.00056986,120]
[358592935,1745295069893,-185.84206417,0.00056986,120]
[358592936,1745295069903,-500.0,0.00056986,120]
[358592937,1745295069917,-1121.58,0.00056986,120]
[358592938,1745295069927,-500.0,0.00056986,120]
[358592939,1745295069937,-522.76946784,0.00056986,120]
[358592940,1745295069947,-500.0,0.00056986,120]
[358592941,1745295069958,-500.0,0.00056986,120]
[358592942,1745295069968,-500.0,0.00056986,120]
[358592943,1745295069977,-500.0,0.00056986,118]
[358592944,1745295069987,-705.34,0.00056986,120]
[358592945,1745295069997,-500.0,0.00056986,120]
[358592946,1745295070006,-500.0,0.00056986,120]
[358592947,1745295070015,-684.17,0.00056986,120]
[358592948,1745295070025,-500.0,0.00056986,120]
[358592949,1745295070033,-500.0,0.00056986,120]
[358592950,1745295070043,-500.0,0.00056986,120]
[358592951,1745295070051,-508.22,0.00056986,120]
[358592952,1745295070061,-500.0,0.00056986,120]
[358592953,1745295070070,-500.0,0.00056986,120]
[358592954,1745295070080,-999.0,0.00056986,120]
[358592955,1745295070089,-500.0,0.00056986,120]
[358592956,1745295070099,-500.0,0.00056986,120]
[358592957,1745295070108,-500.0,0.00056986,120]
[358592958,1745295070117,-500.0,0.00056986,120]
[358592959,1745295070127,-500.0,0.00056986,120]
[358592960,1745295070136,-1348.73,0.00056986,120]
[358592961,1745295070145,-695.38,0.00056986,120]
[358592962,1745295070155,-500.0,0.00056986,30]
[358592963,1745295070166,-500.0,0.00056986,120]
[358592964,1745295070175,-500.0,0.00056986,120]
[358592965,1745295070185,-500.0,0.00056986,120]
[358592966,1745295070194,-500.0,0.00056986,120]
[358592967,1745295070203,-500.0,0.00056986,120]
[358592968,1745295070212,-500.0,0.00056986,120]
[358592969,1745295070221,-500.0,0.00056986,120]
[358592970,1745295070231,-622.16154333,0.00056986,120]
[358592971,1745295070241,-500.0,0.00056986,120]
[358592972,1745295070251,-500.0,0.00056986,120]
[358592973,1745295070260,-628.71,0.00056986,120]
[358592974,1745295070270,-500.0,0.00056986,120]
[358592975,1745295070279,-500.0,0.00056986,120]
[358592976,1745295070288,-500.0,0.00056986,120]
[358592977,1745295070297,-558.46,0.00056986,120]
[358592978,1745295070306,-496.99013113,0.00056986,120]
[358592979,1745295070315,-500.0,0.00056986,120]
[358592980,1745295070324,-548.78,0.00056986,120]
[358592981,1745295070333,-500.0,0.00056986,120]
[358592982,1745295070342,-500.0,0.00056986,120]
[358592983,1745295070351,-500.0,0.00056986,120]
[358592984,1745295070361,-1159.28,0.00056986,120]
[358592985,1745295070370,-500.0,0.00056986,120]
[358592986,1745295070379,-695.53,0.00056986,120]
[358592987,1745295070389,-500.0,0.00056986,120]
[358592988,1745295070398,-500.0,0.00056986,120]
[358592989,1745295070408,-500.0,0.00056986,120]
[358592990,1745295070420,-500.0,0.00056986,120]
[358592991,1745295070429,-500.0,0.00056986,120]
[358592992,1745295070438,-819.39,0.00056986,120]
[358592993,1745295070447,-500.0,0.00056986,120]
[358592994,1745295070456,-500.0,0.00056986,120]
[358592995,1745295070465,-500.0,0.00056986,120]
[358592996,1745295070474,-500.0,0.00056986,120]
[358592997,1745295070483,-496.29933373,0.00056986,120]
[358592998,1745295070493,-500.0,0.00056986,120]
[358592999,1745295070502,-500.0,0.00056986,120]
[358593000,1745295070510,-500.0,0.00056986,120]
[358593001,1745295070519,-500.0,0.00056986,120]
[358593002,1745295070529,-568.16,0.00056986,120]
[358593003,1745295070538,-500.0,0.00056986,120]
[358593004,1745295070547,-534.15,0.00056986,120]
[358593005,1745295070556,-500.0,0.00056986,120]
[358593006,1745295070565,-534.52,0.00056986,120]
[358593007,1745295070575,-1643.32,0.00056986,120]
[358593008,1745295070584,-501.13,0.00056986,120]
[358593009,1745295070593,-2238.72,0.00056986,2]
[358593010,1745295070602,-500.0,0.00056986,120]
[358593011,1745295070611,-632.59,0.00056986,120]
[358593012,1745295070620,-500.0,0.00056986,120]
[358593013,1745295070629,-500.0,0.00056986,120]
[358593014,1745295070638,-500.0,0.00056986,120]
[358593015,1745295070647,-500.0,0.00056986,120]
[358593016,1745295070656,-500.0,0.00056986,120]
[358593017,1745295070667,-1217.58,0.00056986,120]
[358593018,1745295070676,-500.0,0.00056986,120]
[358593019,1745295070685,-734.8,0.00056986,120]
[358593020,1745295070695,-500.0,0.00056986,120]
[358593021,1745295070704,-512.63,0.00056986,120]
[358593022,1745295070714,-500.0,0.00056986,120]
[358593023,1745295070723,-535.91,0.00056986,120]
[358593024,1745295070733,-500.0,0.00056986,120]
[358593025,1745295070742,-500.0,0.00056986,120]
[358593026,1745295070751,-500.0,0.00056986,120]
[358593027,1745295070761,-500.0,0.00056986,120]
[358593028,1745295070770,-525.32,0.00056986,120]
[358593029,1745295070779,-500.0,0.00056986,120]
[358593030,1745295070788,-3005.98,0.00056986,120]
[358593031,1745295070797,-387.87852347,0.00056986,120]
[358593032,1745295070806,-500.0,0.00056986,120]
[358593033,1745295070816,-500.0,0.00056986,120]
[358593034,1745295070825,-500.0,0.00056986,120]
[358593035,1745295070835,-500.0,0.00056986,120]
[358593036,1745295070845,-500.0,0.00056986,120]
[358593037,1745295070854,-1224.65,0.00056986,120]
[358593038,1745295070863,-500.0,0.00056986,120]
[358593039,1745295070872,-500.0,0.00056986,120]
[358593040,1745295070881,-500.0,0.00056986,120]
[358593041,1745295070891,-740.11,0.00056986,120]
[358593042,1745295070900,-1297.76,0.00056986,120]
[358593043,1745295070910,-500.0,0.00056986,120]
[358593044,1745295070925,-500.0,0.00056986,120]
[358593045,1745295070934,-500.0,0.00056986,120]
[358593046,1745295070943,-500.0,0.00056986,120]
[358593047,1745295070954,-50000.0,0.00057,57]
[358593048,1745295070963,-250.0,0.00057,5]
[358593049,1745295070972,-10000.0,0.00057,10]
[358593050,1745295070981,-37929.47,0.00057,60]
[358593051,1745295070991,-1150.0,0.00057,2]
[358593052,1745295071001,-600.0,0.00057047,120]
[358593053,1745295071011,-1000.0,0.00057058,120]
[358593054,1745295071020,-37929.47,0.000571,60]
[358593055,1745295071029,-151.0,0.000571,120]
[358593056,1745295071039,-211.19788319,0.00057187,120]
[358593057,1745295071048,-200.0,0.000572,109]
[358593058,1745295071057,-1000.0,0.00057201,120]
[358593059,1745295071066,-1070.0,0.0005726,120]
[358593060,1745295071076,-1042.0,0.0005726,120]
[358593061,1745295071085,-152.0,0.00057297,14]
[358593062,1745295071094,-236.32896975,0.00057297,5]
[358593063,1745295071104,-600.0,0.00057308,120]
[358593064,1745295071113,-500.0,0.0005749,120]
[358593065,1745295071123,-4280.41991633,0.000575,30]
[358593066,1745295071262,-500.0,0.00057534,2]
[358593067,1745295071272,-150.0,0.00057534,2]
[358593068,1745295071281,-205.26113755,0.00057534,2]
[358593069,1745295071291,-500.0,0.00057534,120]
[358593070,1745295071300,-89923.15,0.00057534,7]
[358593071,1745295071309,-187.884564,0.00057534,120]
[358593072,1745295071318,-298.945392,0.00057534,120]
[358593073,1745295071327,-222.703088,0.00057534,120]
[358593074,1745295071341,-1123.355858,0.00057534,120]
[358593075,1745295071350,-151.0,0.00057534,120]
[358593076,1745295071360,-500.0,0.00057534,120]
[358593077,1745295071369,-500.0,0.00057534,120]
[358593078,1745295071379,-500.0,0.00057534,60]
[358593079,1745295071389,-600.0,0.00057534,120]
[358593080,1745295071399,-500.0,0.00057534,120]
[358593081,1745295071408,-500.0,0.00057534,120]
[358593082,1745295071419,-500.0,0.00057534,120]
[358593083,1745295071428,-500.0,0.00057534,120]
[358593084,1745295071438,-1080.46872231,0.00057534,120]
[358593085,1745295071447,-500.0,0.00057534,120]
[358593086,1745295071457,-500.0,0.00057534,120]
[358593087,1745295071466,-171.5021239,0.00057534,120]
[358593088,1745295071476,-500.0,0.00057534,120]
[358593089,1745295071485,-500.0,0.00057534,120]
[358593090,1745295071494,-500.0,0.00057534,120]
[358593091,1745295071504,-367.726189,0.00057534,120]
[358593092,1745295071514,-461.21103255,0.00057534,120]
[358593093,1745295071523,-500.0,0.00057534,120]
[358593094,1745295071532,-500.0,0.00057534,120]
[358593095,1745295071543,-500.0,0.00057534,120]
[358593096,1745295071553,-500.0,0.00057534,120]
[358593097,1745295071563,-543.62070081,0.00057534,120]
[358593098,1745295071573,-500.0,0.00057534,120]
[358593099,1745295071582,-500.0,0.00057534,120]
[358593100,1745295071592,-500.0,0.00057534,120]
[358593101,1745295071601,-500.0,0.00057534,120]
[358593102,1745295071611,-574.32,0.00057534,120]
[358593103,1745295071620,-500.0,0.00057534,120]
[358593104,1745295071631,-500.0,0.00057534,120]
[358593105,1745295071640,-500.0,0.00057534,120]
[358593106,1745295071650,-583.13319549,0.00057534,120]
[358593107,1745295071659,-228.42984206,0.00057534,120]
[358593108,1745295071668,-493.84992608,0.00057534,120]
[358593109,1745295071678,-673.62,0.00057534,120]
[358593110,1745295071688,-500.0,0.00057534,120]
[358593111,1745295071697,-500.0,0.00057534,120]
[358593112,1745295071707,-500.0,0.00057534,120]
[358593113,1745295071716,-843.87,0.00057534,120]
[358593114,1745295071726,-487.28696615,0.00057534,120]
[358593115,1745295071735,-500.0,0.00057534,120]
[358593116,1745295071744,-312.64929593,0.00057534,120]
[358593117,1745295071754,-500.0,0.00057534,120]
[358593118,1745295071763,-500.0,0.00057534,120]
[358593119,1745295071772,-500.0,0.00057534,120]
[358593120,1745295071781,-500.0,0.00057534,120]
[358593121,1745295071790,-500.0,0.00057534,120]
[358593122,1745295071800,-336.57346961,0.00057534,120]
[358593123,1745295071809,-500.0,0.00057534,120]
[358593124,1745295071818,-153.24850074,0.00057534,120]
[358593125,1745295071827,-500.0,0.00057534,120]
[358593126,1745295071837,-1312.2,0.00057534,120]
[358593127,1745295071846,-500.0,0.00057534,120]
[358593128,1745295071855,-500.0,0.00057534,120]
[358593129,1745295071865,-500.0,0.00057534,120]
[358593130,1745295071875,-326.53961003,0.00057534,120]
[358593131,1745295071884,-500.0,0.00057534,120]
[358593132,1745295071894,-500.0,0.00057534,120]
[358593133,1745295071903,-500.0,0.00057534,120]
[358593134,1745295071919,-662.48,0.00057534,120]
[358593135,1745295071930,-500.0,0.00057534,120]
[358593136,1745295071940,-583.55,0.00057534,120]
[358593137,1745295071951,-539.25,0.00057534,120]
[358593138,1745295071962,-500.0,0.00057534,120]
[358593139,1745295071972,-500.0,0.00057534,120]
[358593140,1745295071982,-500.0,0.00057534,120]
[358593141,1745295071992,-500.0,0.00057534,120]
[358593142,1745295072002,-500.0,0.00057534,120]
[358593143,1745295072013,-169.599553,0.00057534,120]
[358593144,1745295072023,-500.0,0.00057534,120]
[358593145,1745295072032,-500.0,0.00057534,120]
[358593146,1745295072042,-436.80757947,0.00057534,120]
[358593147,1745295072053,-500.0,0.00057534,120]
[358593148,1745295072062,-500.0,0.00057534,120]
[358593149,1745295072073,-500.0,0.00057534,120]
[358593150,1745295072083,-500.0,0.00057534,120]
[358593151,1745295072092,-500.0,0.00057534,120]
[358593152,1745295072102,-500.0,0.00057534,120]
[358593153,1745295072112,-500.0,0.00057534,120]
[358593154,1745295072121,-500.0,0.00057534,120]
[358593155,1745295072131,-500.0,0.00057534,120]
[358593156,1745295072141,-509.45,0.00057534,120]
[358593157,1745295072151,-500.0,0.00057534,120]
[358593158,1745295072160,-500.0,0.00057534,120]
[358593159,1745295072172,-500.0,0.00057534,120]
[358593160,1745295072182,-3289.934607,0.00057534,120]
[358593161,1745295072191,-3289.934607,0.00057534,120]
[358593162,1745295072201,-515.19,0.00057534,120]
[358593163,1745295072211,-500.0,0.00057534,120]
[358593164,1745295072221,-559.38954442,0.00057534,120]
[358593165,1745295072231,-500.0,0.00057534,120]
[358593166,1745295072240,-500.0,0.00057534,120]
[358593167,1745295072250,-500.0,0.00057534,120]
[358593168,1745295072260,-500.0,0.00057534,120]
[358593169,1745295072269,-500.0,0.00057534,120]
[358593170,1745295072279,-500.0,0.00057534,120]
[358593171,1745295072288,-470.85391072,0.00057534,120]
[358593172,1745295072298,-500.0,0.00057534,120]
[358593173,1745295072307,-500.0,0.00057534,120]
[358593174,1745295072317,-1064.2,0.00057534,120]
[358593175,1745295072326,-523.02,0.00057534,120]
[358593176,1745295072336,-500.0,0.00057534,2]
[358593177,1745295072345,-500.0,0.00057534,120]
[358593178,1745295072354,-347.38939351,0.00057534,120]
[358593179,1745295072363,-500.0,0.00057534,120]
[358593180,1745295072372,-500.0,0.00057534,120]
[358593181,1745295072382,-500.0,0.00057534,120]
[358593182,1745295072391,-500.0,0.00057534,120]
[358593183,1745295072400,-500.0,0.00057534,120]
[358593184,1745295072410,-151.0,0.00057534,120]
[358593185,1745295072421,-20766.77,0.00057534,120]
[358593186,1745295072430,-500.0,0.00057534,120]
[358593187,1745295072439,-500.0,0.00057534,120]
[358593188,1745295072448,-238.82443507,0.00057534,120]
[358593189,1745295072458,-500.0,0.00057534,120]
[358593190,1745295072468,-521.41462415,0.00057534,120]
[358593191,1745295072477,-1000.0,0.00057534,35]
[358593192,1745295072486,-599.35568527,0.00057534,120]
[358593193,1745295072495,-500.0,0.00057534,120]
[358593194,1745295072504,-500.0,0.00057534,120]
[358593195,1745295072513,-500.0,0.00057534,120]
[358593196,1745295072522,-500.0,0.00057534,120]
[358593197,1745295072531,-500.0,0.00057534,120]
[358593198,1745295072541,-1000.0,0.00057534,120]
[358593199,1745295072550,-350.593814,0.00057534,120]
[358593200,1745295072559,-500.0,0.00057534,120]
[358593201,1745295072568,-500.0,0.00057534,120]
[358593202,1745295072578,-545.52,0.00057534,120]
[358593203,1745295072587,-2205.73,0.00057534,120]
[358593204,1745295072596,-500.0,0.00057534,120]
[358593205,1745295072605,-500.0,0.00057534,120]
[358593206,1745295072614,-500.0,0.00057534,120]
[358593207,1745295072624,-1121.58,0.00057534,120]
[358593208,1745295072633,-500.0,0.00057534,120]
[358593209,1745295072642,-500.0,0.00057534,120]
[358593210,1745295072651,-500.0,0.00057534,120]
[358593211,1745295072660,-500.0,0.00057534,120]
[358593212,1745295072669,-500.0,0.00057534,118]
[358593213,1745295072678,-224.993622,0.00057534,120]
[358593214,1745295072688,-705.34,0.00057534,120]
[358593215,1745295072697,-500.0,0.00057534,120]
[358593216,1745295072707,-500.0,0.00057534,120]
[358593217,1745295072716,-224.993622,0.00057534,120]
[358593218,1745295072725,-684.17,0.00057534,120]
[358593219,1745295072734,-500.0,0.00057534,120]
[358593220,1745295072743,-500.0,0.00057534,120]
[358593221,1745295072752,-513.04342697,0.00057534,120]
[358593222,1745295072761,-508.22,0.00057534,120]
[358593223,1745295072770,-500.0,0.00057534,120]
[358593224,1745295072779,-500.0,0.00057534,120]
[358593225,1745295072789,-999.0,0.00057534,120]
[358593226,1745295072798,-500.0,0.00057534,120]
[358593227,1745295072807,-500.0,0.00057534,120]
[358593228,1745295072817,-500.0,0.00057534,120]
[358593229,1745295072826,-500.0,0.00057534,120]